Cogmind - Beta 15 @@@ ROGUE MODE // 2025.06.06 @ 16:05:28 // Winter2019/RPGLIKE Player: Jack Result: Destroyed by Y-45 Defender with Heavy Assault Rifle Performance ------------- Evolutions (2) 1000 Regions Visited (3) 600 Robots Destroyed (8) 40 Value Destroyed (224) 224 Prototype IDs (0) 0 Alien Tech Used (0) 0 Bonus (200) 200 TOTAL SCORE: 2064 Bonus ------- Pacifist 200 Cogmind --------- Core Integrity 0/600 Matter 290/300 Energy 100/100 System Corruption 0% Temperature Cool (9) Movement Core (100) Ox1 Location -8/Materials Parts ------- > --- POWER (1) -------- (None) > --- PROPULSION (2) --- (None) > --- UTILITY (1) ------ Improved Light Armor Plating > --- WEAPON (2) ------- Hammer > --- INVENTORY (0) ---- (None) Peak State ------------ > --- POWER ------------ (None) > --- PROPULSION ------- (None) > --- UTILITY ---------- Improved Light Armor Plating > --- WEAPON ----------- Hammer > --- INVENTORY -------- (None) [Rating: 4] Favorites ----------- Power Backup Power I Engine Backup Power I Propulsion None Utility Backup Plating I Protection Backup Plating I Weapon Hammer Ballistic Gun Light Assault Rifle Impact Weapon Hammer Build | -11 -10 -9 -8 ------- Run | Yrd Mat Mat Mat Slots Evolved 2 | 2 . . . Power . | . . . . Propulsion 1 | 1 . . . Utility . | . . . . Weapon 1 | 1 . . . Parts Attached 4 | 2 1 . 1 Power . | . . . . Engine . | . . . . Core . | . . . . Reactor . | . . . . Propulsion . | . . . . Treads . | . . . . Leg . | . . . . Wheel . | . . . . Hover . | . . . . Flight . | . . . . Utility 1 | . . . 1 Device . | . . . . Storage . | . . . . Processor . | . . . . Hackware . | . . . . Protection 1 | . . . 1 Artifact . | . . . . Weapon 3 | 2 1 . . Energy Gun . | . . . . Energy Cannon . | . . . . Ballistic Gun 2 | 2 . . . Ballistic Cannon . | . . . . Launcher . | . . . . Special Weapon . | . . . . Impact Weapon 1 | . 1 . . Slashing Weapon . | . . . . Piercing Weapon . | . . . . Special Melee Weapon . | . . . . Unidentified Prototypes . | . . . . Parts Lost 1 | . . 1 . Power . | . . . . Propulsion . | . . . . Utility 1 | . . 1 . Weapon . | . . . . Highest Loss Streak 1 | . . 1 . To Critical Strikes . | . . . . Average Backups . | . . . . Power . | . . . . Propulsion . | . . . . Utility . | . . . . Weapon . | . . . . Tool/Special . | . . . . Unused Backups . | . . . . Power . | . . . . Propulsion . | . . . . Utility . | . . . . Weapon . | . . . . Tool/Special . | . . . . Average Slot Usage (%) 25 | . 30 26 21 Protection 6 | . . 9 4 Ballistic Gun 5 | . 30 . . Impact Weapon 13 | . . 16 16 Peak Build Rating 4 | 2 2 3 4 Average Rating 1 | . 1 1 2 On Entrance 1 | . 2 2 1 Naked Turns . | . . . . Heaviest Build 5 | 2 3 3 5 Greatest Support 3 | 3 3 3 3 Greatest Overweight (x) 1 | . . . 1 Average Overweight (x) . | . . . . Largest Inventory Capacity . | . . . . Average Capacity . | . . . . Most Carried . | . . . . Average Carried . | . . . . Final Capacity . | . . . . Final Carried . | . . . . Class Distribution -------------------- 100% | Hacker-Mutant Dominant Class ---------------- Hacker-Mutant | -10/Materials Hacker-Mutant | -9/Materials Hacker-Mutant | -8/Materials Resources | -11 -10 -9 -8 ----------- Run | Yrd Mat Mat Mat Matter Collected 230 | 220 . 10 . Remotely . | . . . . Salvage Created 259 | . . 177 82 Parts 10 | . . 7 3 Haulers Intercepted . | . . . . Recyclers Shooed . | . . . . Parts Field Recycled . | . . . . Retrieved Matter . | . . . . Parts Self-Destructed . | . . . . Prevented . | . . . . Kills | -11 -10 -9 -8 ------- Run | Yrd Mat Mat Mat Combat Hostiles Destroyed 7 | . . 6 1 Melee 5 | . . 4 1 Classes Destroyed 4 | . . 3 1 Worker 1 | . . . 1 Swarmer 2 | . . 2 . Grunt 2 | . . 2 . Sentry 3 | . . 2 1 Best Kill Streak 3 | . . 3 2 Combat Bots Only 3 | . . 3 1 Max Kills in Single Turn 1 | . . 1 1 Gunslinging . | . . . . Exploded . | . . . . Melee 1 | . . 1 1 Uniques/NPCs Destroyed . | . . . . Combat | -11 -10 -9 -8 -------- Run | Yrd Mat Mat Mat Hostile Shots Fired 103 | . 24 61 18 Missed 30 | . 9 19 2 Hits 73 | . 15 42 16 Projectile 73 | . 15 42 16 Critical Strikes 1 | . . 1 . Damage Taken 887 | . 182 463 242 Core 741 | . 165 375 201 Absorbed by Shields . | . . . . Redirected to Core 242 | . 55 130 57 Core Remaining (%) 68 | 100 72 33 . Volleys Fired . | . . . . Largest . | . . . . Hottest . | . . . . Shots Fired . | . . . . Gun . | . . . . Cannon . | . . . . Launcher . | . . . . Special . | . . . . Kinetic . | . . . . Thermal . | . . . . Explosive . | . . . . Electromagnetic . | . . . . Robot Hit Streak . | . . . . Robot Miss Streak . | . . . . Penetration Max . | . . . . Secondary Targets . | . . . . Shots Hit Robots 29 | . . 21 8 Core Hits 4 | . . 3 1 Critical Kills 1 | . . 1 . Critical Parts Destroyed 4 | . . 3 1 Critical Strikes 6 | . . 5 1 Smash 6 | . . 5 1 Melee Attacks 40 | . . 29 11 Impact 40 | . . 29 11 Slashing . | . . . . Piercing . | . . . . Sneak Attacks 2 | . . 1 1 Combat Hostiles . | . . . . Follow-up Attacks . | . . . . Damage Inflicted 763 | . . 562 201 Guns . | . . . . Cannons . | . . . . Explosions . | . . . . Melee 763 | . . 562 201 Ramming . | . . . . Kinetic . | . . . . Thermal . | . . . . Explosive . | . . . . Electromagnetic . | . . . . Impact 763 | . . 562 201 Slashing . | . . . . Piercing . | . . . . Highest Corruption . | . . . . Average Corruption . | . . . . Corruption Purged . | . . . . Corruption Blocked . | . . . . Overload Shots . | . . . . Overflow Damage 179 | . . 131 48 Projectiles . | . . . . Explosions . | . . . . Melee 179 | . . 131 48 Knockbacks 2 | . . 1 1 Impact 2 | . . 1 1 Kinetic . | . . . . Secondary . | . . . . Self-Inflicted Damage . | . . . . Shots . | . . . . Rammed . | . . . . Targets Rammed . | . . . . Kicked . | . . . . Crushed . | . . . . Highest Temperature 3 | . . 3 . Average Temperature 3 | . . 3 . Received Heat Transfer 324 | . 102 150 72 Siege Activations . | . . . . Martial Activations . | . . . . Shielding Activations . | . . . . Robots Disrupted . | . . . . Combat Hostiles . | . . . . Robots Corrupted 3 | . . 2 1 Combat Hostiles 2 | . . 2 . Parts Fried 5 | . . 5 . Impact Corruptions 10 | . . 8 2 Robots Melted . | . . . . Combat Hostiles . | . . . . Parts Melted . | . . . . Heat Transferred . | . . . . Parts Sabotaged . | . . . . Parts Stolen . | . . . . Parts Stripped . | . . . . Power Chain Reactions . | . . . . Alert | -11 -10 -9 -8 ------- Run | Yrd Mat Mat Mat Maximum Alert Level . | . . . . Low Security (%) 100 | 100 100 100 100 Level 1 . | . . . . Level 2 . | . . . . Level 3 . | . . . . Level 4 . | . . . . Level 5 . | . . . . High Security . | . . . . Max Security . | . . . . Peak Influence 186 | . 21 186 98 Initial 78 | . . . 78 Average 51 | . 6 61 80 Influence Increases 337 | . 21 280 36 Destroy 0b10 Robot/C 140 | . . 120 20 Destroy 0b10 Robot/NC 5 | . . . 5 Destroy Leader 30 | . . 20 10 Successful Hack 10 | . 6 4 . Destroy Structure 2 | . . 1 1 Partial Spotted 30 | . 15 15 . Lose Combat Pursuer 120 | . . 120 . Influence Decreases 263 | . 20 95 148 Entered New Map 109 | . . 1 108 Time Decay 144 | . 20 84 40 Lost Part 10 | . . 10 . Squads Dispatched 4 | . 1 2 1 Investigation . | . . . . Extermination . | . . . . Reinforcement 4 | . 1 2 1 Assault . | . . . . Garrison . | . . . . Intercept . | . . . . Searches Triggered . | . . . . Construction Impeded . | . . . . Haulers Reinforced . | . . . . Active Scanning Responses . | . . . . Cargo Convoy Interrupts . | . . . . Stealth | -11 -10 -9 -8 --------- Run | Yrd Mat Mat Mat Distress Signals 3 | . 1 2 . Communications Jammed . | . . . . Distress Signals . | . . . . Times Spotted 40 | . 7 31 2 Peak Tracking Total 10 | . 6 10 1 Tactical Retreats 3 | . . 3 . Traps | -11 -10 -9 -8 ------- Run | Yrd Mat Mat Mat Traps Triggered . | . . . . Indirectly . | . . . . Trap Hack Attempts . | . . . . Triggered . | . . . . Disarmed . | . . . . Reprogrammed . | . . . . Reused . | . . . . Traps Extracted . | . . . . Installed . | . . . . Triggered . | . . . . Machines | -11 -10 -9 -8 ---------- Run | Yrd Mat Mat Mat Machines Disabled . | . . . . Max in Single Turn . | . . . . Machines Repaired . | . . . . Machines Dismantled . | . . . . Machines Sabotaged . | . . . . Overloaded Fab Kills . | . . . . Hacking | -11 -10 -9 -8 --------- Run | Yrd Mat Mat Mat Machines Accessed 6 | . 3 2 1 Terminals 5 | . 3 1 1 Fabricators . | . . . . Repair Stations 1 | . . 1 . Recycling Units . | . . . . Scanalyzers . | . . . . Garrison Access . | . . . . Total Hacks 11 | . 4 5 2 Successful 6 | . 4 2 . Failed 5 | . . 3 2 Catastrophic . | . . . . Database Lockouts . | . . . . Manual 7 | . 4 1 2 Terminals 7 | . 4 1 2 Fabricators . | . . . . Repair Stations 4 | . . 4 . Recycling Units . | . . . . Scanalyzers . | . . . . Garrison Access . | . . . . Terminal Hacks 2 | . 2 . . Level Access Points 1 | . 1 . . Registered Components 1 | . 1 . . Fabricator Hacks . | . . . . Repair Station Hacks 1 | . . 1 . Refit 1 | . . 1 . Recycling Unit Hacks . | . . . . Scanalyzer . | . . . . Garrison Access Hacks . | . . . . Unauthorized Hacks 3 | . 2 1 . Terminals 3 | . 2 1 . Botnet 3 | . 2 1 . Fabricators . | . . . . Repair Stations . | . . . . Recycling Units . | . . . . Scanalyzers . | . . . . Garrison Access . | . . . . Data Cores Recovered . | . . . . Used . | . . . . Hacking Detections 5 | . 2 2 1 Full Trace Events 1 | . . . 1 Feedback Events . | . . . . Feedback Blocked . | . . . . Robot Schematics Acquired . | . . . . Robots Built . | . . . . Authchips . | . . . . Time . | . . . . Total Robot Build Rating . | . . . . Part Schematics Acquired . | . . . . Parts Built . | . . . . Authchips . | . . . . Time . | . . . . Total Part Build Rating . | . . . . Parts Repaired . | . . . . Time . | . . . . Parts Recycled . | . . . . Recycled Matter . | . . . . Retrieved Matter . | . . . . Retrieved Components . | . . . . Parts Scanalyzed . | . . . . Part Schematics Acquired . | . . . . Parts Damaged . | . . . . Bothacking | -11 -10 -9 -8 ------------ Run | Yrd Mat Mat Mat Used RIF Installer . | . . . . Robots Hacked . | . . . . Non-combat . | . . . . Combat . | . . . . Robot Hacks Applied . | . . . . Relay Couplers Released . | . . . . Fabnet Peak Effective % . | . . . . Robots Rewired . | . . . . Allies Hacked . | . . . . Hacks Repelled . | . . . . Allies | -11 -10 -9 -8 -------- Run | Yrd Mat Mat Mat Total Allies . | . . . . Largest Group . | . . . . Highest-Rated Group . | . . . . Highest-Rated Ally . | . . . . Total Orders . | . . . . Ally Attacks . | . . . . Total Damage . | . . . . Kills . | . . . . Allies Corrupted . | . . . . Allies Melted . | . . . . Intel | -11 -10 -9 -8 ------- Run | Yrd Mat Mat Mat Active Infowar (turns) . | . . . . Robot Analysis Total . | . . . . Derelict Logs Recovered . | . . . . Drone Launches . | . . . . Drone Recoveries . | . . . . Exploration | -11 -10 -9 -8 ------------- Run | Yrd Mat Mat Mat Turns Passed 440 | 42 62 247 89 Spaces Moved 567 | 77 117 289 84 Core 567 | 77 117 289 84 Treads . | . . . . Legs . | . . . . Wheels . | . . . . Hover . | . . . . Flight . | . . . . Fastest Speed 50 | 50 50 50 50 Average Speed 51 | 50 50 50 62 Slowest Speed 100 | 50 50 50 100 Overloaded Moves . | . . . . Propulsion Burnouts . | . . . . Robots Hopped . | . . . . Potential Cave-ins . | . . . . Cave-ins Triggered . | . . . . Exploration Rate (%) 19 | 3 30 35 8 Regions Visited 3 Branch Regions . Pre-discovered Areas . | . . . . Known Exits Taken 1 | . 1 . . Unknown Exits Taken 2 | 1 . 1 . Scrap Searched . | . . . . Spaces Dug . | . . . . Terrain Destroyed . | . . . . Melee . | . . . . Projectile . | . . . . AOE . | . . . . Terrain Rammed . | . . . . Walls Destroyed . | . . . . Machines Disabled . | . . . . Actions | -11 -10 -9 -8 --------- Run | Yrd Mat Mat Mat Total 640 | 78 119 342 101 Wait 21 | . 1 15 5 Move 564 | 76 116 288 84 Hop . | . . . . Pick Up . | . . . . Fast Attach 4 | 2 1 . 1 Attach . | . . . . Detach . | . . . . Swap . | . . . . Drop 5 | . 1 4 . Fire . | . . . . Melee 40 | . . 29 11 Ram . | . . . . Kick . | . . . . Crush . | . . . . Escape Stasis . | . . . . Rewire . | . . . . Trap . | . . . . Miscellaneous 6 | . . 6 . Route ------- -11/Scrapyard -10/Materials (discovered 3 exits: *Mat x3) -9/Materials -8/Materials History --------- Turn | Location | Event 6 | -11/Scrapyard | Discovered new exit (range 15) 23 | -11/Scrapyard | Upgraded with Propulsion slot (x1) 23 | -11/Scrapyard | Upgraded with Weapon slot (x1) 43 | -11/Scrapyard | Entered Materials 76 | -10/Materials | Identified exit to Materials 105 | -10/Materials | Entered another Materials area 107 | -9/Materials | Reached level 2 204 | -9/Materials | Core integrity fell below 50% 300 | -9/Materials | Build established: Hacker-Mutant 351 | -9/Materials | Discovered new exit (range 3) 352 | -9/Materials | Entered another Materials area 353 | -8/Materials | Core integrity fell below 50% 354 | -8/Materials | Reached level 3 381 | -8/Materials | Core integrity fell below 20% 441 | -8/Materials | Destroyed by Y-45 Defender with Heavy Assault Rifle Last Messages --------------- EXIT=FOUND LOCATION=UNKNOWN GOAL=ESCAPE Reached level 3. Connecting with Terminal... Current location identified: Materials Upgraded: Hack Attack % (+10) Connecting with Terminal... K-01 Serf collects debris. Y-45 Defender destroyed. Sneak attack on K-01 Serf. K-01 Serf suffers critical hit (Smash). Destroyed Wheel. Destroyed Sml. Matter Pod. K-01 Serf system corrupted by crushing effect. K-01 Serf knocked back. O-16 Technician: "IFF HANDSHAKE FAILED. SECURING TERMINAL." Acquired Imp. Light Armor Plating. ALERT: Hostiles spotted, dispatching reinforcements to Terminal M003. U-05 Engineer builds a Door. Map ----- +----------------------------------------------------+ | ????????????????# #????????? | | ????????????????# #????????? | | ????????????????# #????????? | | ????????????????# #????????? | | ????????????????# #????????? | | ????????????????# #????????? | | ????????????????# #????????? | | ????????????##### ########## | | ????????????#!! # # | | ????????????#!! # "# | | ????????????#!! # "# | | ????????????#!! #* "# | | ????????????#!! %"% T# | | ????????????#!! [#! "# | | ????????????####### # "# | | ??????????????????# # "# | | ??????????????????# # # | | ??????????????????# ########## | | ??????????????????# #?# # | | ????????????????### ### """ # | | ????????????????# # """ # | | ??????????####### ] # """ # | | ???? + + """ # | | ??????????####### # """ # | | ????????????????# # # | | ???????????????####+###""@ # | | ???????????????# #"" Y # | | ???????????????# #"T %# | | ???????????????# #"" # | | ???????????????# !!! /#"" # | | ????????? + !!! # # | | ????????##+##### !!! ### #### | | ???????????????########?###??? | | ?????????????????????????????? | | ?????????????????????????????? | | ?????????????????????????????? | | ?????????????????????????????? | | ?????????????????????????????? | | ?????????????????????????????? | | ?????????????????????????????? | | ?????????????????????????????? | | ?????????????????????????????? | | ?????????????????????????????? | | ?????????????????????????????? | | ?????????????????????????????? | | ?????????????????????????????? | | ?????????????????????????????? | | ?????????????????????????????? | | ?????????????????????????????? | | ?????????????????????????????? | +----------------------------------------------------+ Best States ------------- Heat Dissipation 25 Energy Generation 5 Energy Capacity 100 Matter Stores 300 Matter Capacity 300 Sight Range 16 Terrain Scan Density 10 Armor Coverage 150 Evasion (%) 50 Offensive Hacking 30 Item Schematics ----------------- None Robot Schematics ------------------ None Fabricated ------------ Nothing Repaired ---------- Nothing Alien Tech Used ----------------- None Achievements -------------- None Challenges ------------ None RPGLIKE | -11 -10 -9 -8 --------- Run | Yrd Mat Mat Mat Levels Raised 2 | . . 1 1 XP Earned 6980 | 3000 130 2200 1650 XP Spent 5200 | 3000 . . 2200 Upgrades 8 | 6 . . 2 Propulsion Slot 1 | 1 . . . Weapon Slot 1 | 1 . . . Hack Attack % 6 | 4 . . 2 Protomatter Created 77 | . . 77 . Integrity Restored 141 | . . 141 . Core 141 | . . 141 . Protomatter Decayed 30 | . . 30 . Game ------ Seed BoltChainCycler Manual? 0 Play Time 00:06:13 Cumulative 260.3 hours Start 2025.06.06 @ 16:00:06 End 2025.06.06 @ 16:05:28 Sessions 1 Manual Loads 0 Difficulty Rogue Special Mode Winter2019/RPGLIKE Game No. 259 Rogue 70 Adventurer 177 Explorer 12 Win Type - Total 65 Types 19/1/16/2/12/0/4/5/0/6 Lore% 54 Gallery% 53 Achievement% 71 Wizard Run 0 Options --------- Layout 0 ASCII 0 Keyboard 0 Movement Numpad Keybinds 0 Fullscreen 2 Font 12/Smallcaps Map View 83x54 Zoom Use 1% Tactical HUD 0 Map Filters NONE Filters NONE Steam 1 RUN: c5b5b5db-ca4f-4c7b-a929-3d73216240dd